{"text_format":"3","workbook":"xlsx","n_sheets":1,"sheets":["CANTIDADES"],"not_rendered":{"images":1},"read":"whole","date_system":"1900"}

{"sheet":"CANTIDADES","index":0,"n_rows":53,"n_cols":10,"rows_kept":53,"merged":[[0,1,0,9],[1,0,2,0],[1,1,2,1],[1,2,2,2],[1,3,1,7],[1,8,2,8],[1,9,2,9],[44,0,44,7],[44,8,44,9],[45,0,45,7],[45,8,45,9],[46,0,46,7],[46,8,46,9],[50,0,50,2],[51,0,51,2],[52,0,52,2]]}
[null,"INVITACIÓN A COTIZAR A NOMBRE DE LA CAMARA DE COMERCIO DE CARTAGENA CON NIT.890480041-1\nMOBILIARIO DE LINEA PISO 1,  MEDIO PISO 18, PISO 19 Y PISO 20- NUEVA SEDE CCC"]
["ITEM","DESCRIPCIÓN MOBILIARIO","U/M","CANTIDAD",{"$nulls":4},"VALOR UNITARIO","VALOR TOTAL"]
[{"$nulls":3},"P1","P18","P19","P20","TOTAL"]
[1,"ML-1 _ Mesa operativa de 140x70 con paneles en sus tres lados, altura entre 74 y 75 cm. Cubierta MDF 25 mm Formica segun fichas tecnicas con tapacantos de PVC de 2mm. Estructura acero electro pintada blanca. Patas con patín para nivelación. Considera bandeja para electrificación, porta chasis doble y tapa pasacables doble. Revisar e incluir las indicaciones (colores y accesorios) del Anexo \"Fichas técnicas\" y planos para la ubicación del mueble que corresponderá en cada cada piso.","PZA",null,4,5,2,11,null,{"$f":"+I4*H4","v":0}]
[2,"ML-01a _ Mesa operativa de 360x70  altura entre 74 y 75 cm. Cubierta MDF 25 mm Formica segun fichas tecnicas con tapacantos de PVC de 2mm. Estructura acero electro pintada blanca. Patas con patín para nivelación. Considera bandeja para electrificación, porta chasis doble y tapa pasacables doble. Revisar e incluir las indicaciones (colores y accesorios) del Anexo \"Fichas técnicas\" y planos para la ubicación del mueble que corresponderá en cada cada piso.","PZA",1,null,2,null,3,null,{"$f":"+I5*H5","v":0}]
[3,"ML-01b _ Mesa operativa, PUESTOS ENFRENTADOS de 140x120, altura entre 74 y 75 cm. Cubierta MDF 25 mm Formica segun fichas tecnicas con tapacantos de PVC de 2mm. Estructura acero electro pintada blanca. Patas con patín para nivelación. Considera bandeja para electrificación, porta chasis doble y tapa pasacables doble. Revisar e incluir las indicaciones (colores y accesorios) del Anexo \"Fichas técnicas\" y planos para la ubicación del mueble que corresponderá en cada cada piso.","PZA",2,{"$nulls":3},2,null,0]
[4,"ML-1c _ Mesas operativas de 140x60 modulacion tipo BENCH DE 6 PUESTOS. con paneles en sus tres lados, altura entre 74 y 75 cm. Cubierta MDF 25 mm Formica segun fichas tecnicas con tapacantos de PVC de 2mm. Estructura acero electro pintada blanca. Patas con patín para nivelación. Considera bandeja para electrificación, porta chasis doble y tapa pasacables doble. Revisar e incluir las indicaciones (colores y accesorios) del Anexo \"Fichas técnicas\" y planos para la ubicación del mueble que corresponderá en cada cada piso.","PZA",null,18,null,null,18,null,0]
[5,"ML-1d _ Mesa operativa de 160x70 con paneles en sus tres lados, altura entre 74 y 75 cm. Cubierta MDF 25 mm Formica segun fichas tecnicas con tapacantos de PVC de 2mm. Estructura acero electro pintada blanca. Patas con patín para nivelación. Considera bandeja para electrificación, porta chasis doble y tapa pasacables doble. Revisar e incluir las indicaciones (colores y accesorios) del Anexo \"Fichas técnicas\" y planos para la ubicación del mueble que corresponderá en cada cada piso.","PZA",2,{"$nulls":5},0]
[6,"ML-02 / PUESTO EN X\n-Superficie de 1.60x0.60 en formica, acabado madera claro.\n-Estructura rectangular en u acabado pintura electrostática, color negro, gris o blanco. -Con pasacables pretroquelado y accesorios para conectividad.\n-Pantalla faldero tapizada. Dimensiones: 135cm de largo x 59,5cm de altura (no va hasta el piso)","PZA",null,null,3,1,4,null,0]
[7,"ML-03. /. MESA TRAPEZOIDAL 3P\n-Puestos de trabajo a 120° en formica, acabado madera claro.\n-Dimensiones según diseño.\n-Estructura rectangular en u acabado pintura electrostática, color negro, gris o blanco.\n-Con pasacables pretroquelado y accesorios para conectividad.","PZA",null,null,1,null,1,null,0]
[8,"ML4 ESCRITORIO GERENCIAL EN L\n-Superficie principal de 180 x 100 en formica en acabado madera claro.\n-Alamacenamiento retorno de 190 x 60 con cuerpo metálico y frentes en formica acabado madera claro.\n-Estructura rectangular en u, acabado pintura electrostática color negro, gris o blanco. -Faldero de formica acabado madera claro.","PZA",1,null,2,null,3,null,0]
[9,"ML4.a ESCRITORIO  GERENCIAL EN L (P18)\n-Superficie principal de 160 x 70 en formica en acabado madera claro.\n-Alamacenamiento retorno de 150 x 60 con cuerpo metálico y frentes en formica acabado madera claro.\n-Estructura rectangular en u, acabado pintura electrostática color negro, gris o blanco. -Faldero de formica acabado madera claro.","PZA",null,1,null,null,1,null,0]
[10,"ML4.b ESCRITORIO PRESIDENCIA CON RETORNO \n-Superficie principal de 200 x 100 en formica en acabado madera claro.\n-Alamacenamiento retorno de 190 x 60 con cuerpo metálico y frentes en formica acabado madera claro.\n-Estructura rectangular en u, acabado pintura electrostática color negro, gris o blanco. -Faldero de formica acabado madera claro.","PZA",{"$nulls":3},1,1,null,0]
[11,"ML5 PULL 45 GRADOS 2P\n-Puestos de trabajo a 45° en formica, acabado madera claro.\n-Dimensiones según diseño.\n-Pantalla faldero tapizada. Dimensiones: 135cm de largo x 60cm de altura (no va hasta el piso) NOTA: sin almacenamiento lateral. \n Altura entre 74 y 75 cm. Cubierta MDF 25 mm acabado en Formica con tapacantos de PVC de 2mm. Estructura acero electro pintada Blanca. Patas con patín para nivelación. Considera bandeja para electrificación, porta chasis doble y tapa pasacables doble. troquel para instalación de toma normal, regulada y datos.","PZA",null,null,1,null,1,null,0]
[12,"ML6   MESA SALA DE JUNTAS 8P\n-Dimensiones: 140 ancho x 350 largo. -Superficie en formica, acabado color madera. -Estructura cuadrada, en pintura electrostática, color negro, gris o blanco.\n-Incluye pasacable abatible, con pretroqueles, y bajante.","PZA",null,1,2,1,4,null,0]
[13,"ML7  PUESTOS HEXAGONALES\n-Puestos de trabajo en formica, acabado madera claro.\n-Dimensiones según diseño.\n-Estructura trapezoidal en u, acabado pintura rectangular , color negro, gris o blanco.\n-Con conectividad.\nconsiderar estructura central  en formica hasta el piso, para ocultar cableado.\n","PZA",null,null,1,null,1,null,0]
[14,"ML8 MESA PHONEBOOTH\n-Dimensiones: 75 ancho x 138 largo. -Superficie en formica, acabado color madera. -Estructura base plato, en pintura electrostática, color negro, gris o blanco. -Incluye pasacable abatible, con pretroqueles, y bajante.","PZA",null,2,3,null,5,null,0]
[15,"ML8.a   MESA TRAPEZOIDAL\n-Dimensiones: 105 ancho x 110 largo. -Superficie en formica, acabado color madera. -Estructura base plato, en pintura electrostática, color negro, gris o blanco. -Incluye pasacable abatible, con pretroqueles, y bajante.","PZA",null,1,2,1,4,null,0]
[16,"ML10    MESA CUADRADA CAFETERIA\n-Mesa cafeteria , acabado BLANCO.\n-Estructura blanca, base plato.\n-Sin conectividad\n-Dimensiones: 70cm x 70cm","PZA",null,null,7,8,15,null,0]
[17,"MOBILIARIO COMPLEMENTARIO","PZA",{"$nulls":4},0,null,0]
[18,"MC 1 MUEBLE GUARDADO CON MACETERO SUPERIOR","PZA",null,null,2,null,2,null,0]
[19,"MC 2 POLTRONA","PZA",2,2,2,2,8,null,0]
[20,"MC 3 COFFEE TABLE","PZA",1,null,2,4,7,null,0]
[21,"MC 4 MESA AUXILIAR","PZA",null,null,7,2,9,null,0]
[22,"MC 5 PUFF","PZA",null,null,4,3,7,null,0]
[23,"MC 6 Sofa modular. Se cuenta cada modulo en cantidades","PZA",null,null,8,6,14,null,0]
[24,"MC 7  Mueble de copy. 180 X 60 CON PUERTAS DE GUARDADO.","PZA",1,1,1,{"$nulls":3},0]
[25,"MC8   SILLON LARGO / LACTANCIA","PZA",null,null,1,null,1,null,0]
[26,"MC10 CREDENZA SALA DE JUNTAS PRESIDENCIA, VERIFICAR MEDIDAS EN PLANOS","PZA",{"$nulls":3},2,2,null,0]
[27,"MC11 CREDENZA PRESIDENCIA. VERIFICAR MEDIDAS EN PLANOS","PZA",{"$nulls":3},1,1,null,0]
[28,"MC12   SOFA 3 PUSTOS","PZA",{"$nulls":3},2,2,null,0]
[29,"MC14 SOFA DE ESPERA S","PZA",1,{"$nulls":3},1,null,0]
[30,"MC14A SOFA DE ESPERA S","PZA",1,{"$nulls":3},1,null,0]
[31,"MC12   SOFA 3 PUSTOS","PZA",{"$nulls":3},2,2,null,0]
[32,"SILLAS - todas las sillas operativas deberan contar con apoyo lumbar","PZA",{"$nulls":6},0]
[33,"S1 Silla operativa","PZA",20,34,38,8,100,null,0]
[34,"S2 Silla Interlocutora","PZA",12,4,8,4,28,null,0]
[35,"S3A Juntas PRINCIPAL","PZA",{"$nulls":3},38,38,null,0]
[36,"S3   Juntas","PZA",5,10,20,2,37,null,0]
[37,"S4 Silla cafeteria","PZA",null,null,2,17,19,null,0]
[38,"S5 butaco alto","PZA",null,null,11,2,13,null,0]
[39,"S6 Silla apilable auditorio y capacitaciones","PZA",{"$nulls":3},95,95,null,0]
[40,"S6a   Silla apilable auditorio y capacitaciones","PZA",{"$nulls":4},0,null,0]
[41,"S7   Silla presidencia","PZA",{"$nulls":3},1,1,null,0]
["SUBTOTAL",{"$nulls":7},{"$f":"SUM(J38:J44)","v":0}]
["IVA",{"$nulls":7},{"$f":"+I45*19%","v":0}]
["TOTAL",{"$nulls":7},{"$f":"+I46+I45","v":0}]
[]
[]
[]
["Nota 1: La Cámara de comercio aceptará dentro de la propuesta, alternativas de colores o modelos, similares a las referencias indicadas"]
["Nota 2: Las medidas deben ser confirmadas con planos suministrados."]
["Nota: Dentro de la propuesta técnica compartir los catalogos de las opciones ofertadas."]